Cogmind - Beta 10.2 @@@ ROGUE MODE // 2021.09.30 @ 00:19:17 Player: User Result: Destroyed by G-47 Trooper with Particle Gun Performance ------------- Evolutions (3) 1500 Regions Visited (7) 1400 Robots Destroyed (25) 125 Value Destroyed (774) 774 Prototype IDs (3) 60 Alien Tech Used (0) 0 Bonus (300) 300 TOTAL SCORE: 4159 Bonus ------- Aligned with FarCom 300 Cogmind --------- Core Integrity 0/700 Matter 232/300 Energy 100/100 System Corruption 4% Temperature Cool (9) Movement Core (150) Ox2 Location -7/Factory Parts ------- > --- POWER (2) -------- (None) > --- PROPULSION (3) --- (None) > --- UTILITY (5) ------ Medium Storage Unit > --- WEAPON (3) ------- (None) > --- INVENTORY (8) ---- Ion Engine Improved Ion Engine Improved Shield Generator Dynamic Insulation System Peak State ------------ > --- POWER ------------ Improved Ion Engine Light Nuclear Core > --- PROPULSION ------- Carbon-fiber Leg Titanium Leg Titanium Leg > --- UTILITY ---------- Heat Sink Medium Storage Unit Recoil Stabilizer Improved Propulsion Shielding Reflective Plating > --- WEAPON ----------- YOLO Cannon Autogun > --- INVENTORY -------- Ion Engine Improved Ion Engine Aluminum Leg Hardened Light Armor Plating Ion Cannon Grenade Launcher [Rating: 48] Favorites ----------- Power Improved Ion Engine Engine Improved Ion Engine Power Core Light Nuclear Core Propulsion Aluminum Leg Treads Medium Treads Leg Aluminum Leg Wheel Wheel Utility Heat Sink Device Heat Sink Storage Small Storage Unit Protection Light Armor Plating Weapon Assault Rifle Energy Cannon YOLO Cannon Ballistic Gun Assault Rifle Launcher Grenade Launcher Special Weapon Plasma Cutter Slashing Weapon Scythe Build | -11 -10 -9 -9 -9 -8 -8 -7 ------- Run | Scr Mat Mat Min Exi Min Mat Fac Slots Evolved 6 | . . 2 . . . 2 2 Power 1 | . . 1 . . . . . Propulsion 1 | . . . . . . 1 . Utility 3 | . . 1 . . . 1 1 Weapon 1 | . . . . . . . 1 Parts Attached 39 | 5 5 5 1 1 . 8 14 Power 8 | 1 . 3 . . . 1 3 Engine 7 | 1 . 3 . . . . 3 Core 1 | . . . . . . 1 . Reactor . | . . . . . . . . Propulsion 8 | 1 2 . . . . 3 2 Treads 1 | . . . . . . . 1 Leg 6 | . 2 . . . . 3 1 Wheel 1 | 1 . . . . . . . Hover . | . . . . . . . . Flight . | . . . . . . . . Utility 11 | 1 1 1 . . . 4 4 Device 3 | . . 1 . . . 2 . Storage 2 | 1 . . . . . 1 . Processor . | . . . . . . . . Hackware . | . . . . . . . . Protection 6 | . 1 . . . . 1 4 Artifact . | . . . . . . . . Weapon 12 | 2 2 1 1 1 . . 5 Energy Gun . | . . . . . . . . Energy Cannon 2 | . . . . 1 . . 1 Ballistic Gun 6 | 2 2 1 . . . . 1 Ballistic Cannon . | . . . . . . . . Launcher 2 | . . . 1 . . . 1 Special Weapon 1 | . . . . . . . 1 Impact Weapon . | . . . . . . . . Slashing Weapon 1 | . . . . . . . 1 Piercing Weapon . | . . . . . . . . Special Melee Weapon . | . . . . . . . . Unidentified Prototypes 1 | . . . . 1 . . . Parts Lost 22 | . . 1 . . . . 21 Power 4 | . . . . . . . 4 Propulsion 5 | . . . . . . . 5 Utility 7 | . . 1 . . . . 6 Weapon 6 | . . . . . . . 6 Highest Loss Streak 16 | . . 1 . . . . 16 Average Slot Usage (%) 86 | . 91 89 88 83 77 83 82 Engine 16 | . 14 20 22 22 22 14 7 Core 1 | . . . . . . 3 6 Leg 19 | . 15 22 22 22 22 26 11 Wheel 1 | . 6 . . . . . . Device 10 | . . 11 11 11 11 18 13 Storage 10 | . 14 11 11 11 11 9 7 Protection 5 | . 12 2 . . . 2 14 Energy Cannon 3 | . . . . 4 11 9 6 Ballistic Gun 12 | . 28 22 20 6 . . 2 Launcher 2 | . . . 1 6 . . 3 Naked Turns . | . . . . . . . . Heaviest Build 49 | 11 16 24 25 37 37 43 49 Greatest Support 49 | 10 20 20 20 20 20 49 49 Greatest Overweight (x) 3 | 1 1 1 1 1 1 1 3 Average Overweight (x) . | . . . 1 1 1 . . Largest Inventory Capacity 10 | 6 6 6 6 6 6 10 8 Average Capacity 6 | 5 6 6 6 6 6 6 8 Most Carried 8 | 6 6 6 6 6 6 8 8 Average Carried 5 | 3 5 5 5 5 6 6 5 Final Capacity 8 | 6 6 6 6 6 6 8 8 Final Carried 8 | 5 6 6 6 6 6 8 4 Class Distribution -------------------- 91% | Mutant 6% | Tank Dominant Class ---------------- Mutant | -10/Materials Mutant | -9/Materials Mutant | -9/Mines Mutant | -9/Exiles Mutant | -8/Mines Mutant | -8/Materials Mutant | -7/Factory Resources | -11 -10 -9 -9 -9 -8 -8 -7 ----------- Run | Scr Mat Mat Min Exi Min Mat Fac Matter Collected 677 | 250 103 139 21 . . 113 51 Remotely . | . . . . . . . . Salvage Created 757 | . 235 139 . . . 308 75 Parts 42 | . 12 11 . . . 15 4 Haulers Intercepted 2 | . . . . . . 2 . Recyclers Shooed . | . . . . . . . . Parts Field Recycled . | . . . . . . . . Retrieved Matter . | . . . . . . . . Parts Self-Destructed . | . . . . . . . . Prevented . | . . . . . . . . Kills | -11 -10 -9 -9 -9 -8 -8 -7 ------- Run | Scr Mat Mat Min Exi Min Mat Fac Combat Hostiles Destroyed 16 | . 7 2 . . . 6 1 Guns 9 | . 7 2 . . . . . Cannons 1 | . . . . . . . 1 AOE 6 | . . . . . . 6 . Classes Destroyed 10 | . 2 3 . . . 5 . Builder 1 | . . . . . . 1 . Tunneler 1 | . . 1 . . . . . Hauler 2 | . . . . . . 2 . Recycler 1 | . . . . . . 1 . Operator 1 | . . . . . . 1 . Watcher 3 | . . 1 . . . 1 1 Swarmer 3 | . 3 . . . . . . Grunt 9 | . 4 1 . . . 4 . Sentry 3 | . . 1 . . . 1 1 Hunter 1 | . . . . . . 1 . Best Kill Streak 5 | . 4 3 . . . 5 1 Combat Bots Only 4 | . 4 1 . . . 3 1 Max Kills in Single Turn 5 | . 1 1 . . . 5 1 Gunslinging . | . . . . . . . . Exploded 2 | . . . . . . 2 . Melee . | . . . . . . . . Uniques/NPCs Destroyed . | . . . . . . . . Combat | -11 -10 -9 -9 -9 -8 -8 -7 -------- Run | Scr Mat Mat Min Exi Min Mat Fac Damage Taken 2653 | . 321 189 . . . 63 2080 Core 448 | . 80 15 . . . . 353 Absorbed by Shields . | . . . . . . . . Core Remaining (%) 91 | 100 68 . . . 96 100 . Volleys Fired 77 | . 34 12 1 . . 6 24 Largest 2 | . 2 2 2 . . 1 2 Hottest 123 | . 40 43 53 . . 100 123 Shots Fired 130 | . 68 24 2 . . 6 30 Gun 94 | . 68 24 1 . . . 1 Cannon 24 | . . . . . . 6 18 Launcher 7 | . . . 1 . . . 6 Special 5 | . . . . . . . 5 Kinetic 94 | . 68 24 1 . . . 1 Thermal 29 | . . . . . . 6 23 Explosive 7 | . . . 1 . . . 6 Electromagnetic . | . . . . . . . . Robot Hit Streak 11 | . 9 6 . . . 8 11 Robot Miss Streak 3 | . 3 2 . . . . 3 Penetration Max . | . . . . . . . . Secondary Targets 2 | . 2 . . . . . . Max Gunslinging Chain 1 | . 1 . . . . . . Shots Hit Robots 72 | . 34 15 . . . 5 18 Core Hits 45 | . 14 6 . . . 15 10 Critical Hits 1 | . . . . . . . 1 Critical Kills . | . . . . . . . . Critical Parts Destroyed 1 | . . . . . . . 1 Melee Attacks . | . . . . . . . . Impact . | . . . . . . . . Slashing . | . . . . . . . . Piercing . | . . . . . . . . Sneak Attacks . | . . . . . . . . Combat Hostiles . | . . . . . . . . Follow-up Attacks . | . . . . . . . . Damage Inflicted 3170 | . 305 193 . . . 2249 423 Guns 512 | . 305 193 . . . . 14 Cannons 859 | . . . . . . 605 254 Explosions 1750 | . . . . . . 1644 106 Melee . | . . . . . . . . Ramming . | . . . . . . . . Kinetic 512 | . 305 193 . . . . 14 Thermal 2552 | . . . . . . 2249 303 Explosive 106 | . . . . . . . 106 Electromagnetic . | . . . . . . . . Impact . | . . . . . . . . Slashing . | . . . . . . . . Piercing . | . . . . . . . . Highest Corruption 4 | . . . . . . . 4 Average Corruption 3 | . . . . . . . 3 Corruption Purged . | . . . . . . . . Effects 1 | . . . . . . . 1 Energy Discharges 1 | . . . . . . . 1 Overload Shots . | . . . . . . . . Overflow Damage 476 | . . . . . . 457 19 Projectiles 300 | . . . . . . 300 . Explosions 176 | . . . . . . 157 19 Melee . | . . . . . . . . Knockbacks . | . . . . . . . . Impact . | . . . . . . . . Kinetic . | . . . . . . . . Secondary . | . . . . . . . . Self-Inflicted Damage 161 | . . . . . . . 161 Shots 2 | . . . . . . . 2 Rammed . | . . . . . . . . Targets Rammed . | . . . . . . . . Kicked . | . . . . . . . . Crushed . | . . . . . . . . Highest Temperature 296 | . 87 . . . . 5 296 Average Temperature 67 | . 30 . . . . 3 103 Received Heat Transfer 924 | . 162 72 . . . 18 672 Effects 1 | . . . . . . . 1 Energy Bleed 1 | . . . . . . . 1 Siege Activations . | . . . . . . . . Robots Corrupted . | . . . . . . . . Combat Hostiles . | . . . . . . . . Parts Fried . | . . . . . . . . Impact Corruptions . | . . . . . . . . Robots Melted . | . . . . . . . . Combat Hostiles . | . . . . . . . . Parts Melted 3 | . . . . . . 3 . Heat Transferred 2815 | . . . . . . 2260 555 Parts Sabotaged . | . . . . . . . . Parts Stolen . | . . . . . . . . Parts Stripped . | . . . . . . . . Power Chain Reactions . | . . . . . . . . Missiles Intercepted . | . . . . . . . . Alert | -11 -10 -9 -9 -9 -8 -8 -7 ------- Run | Scr Mat Mat Min Exi Min Mat Fac Peak Influence 446 | . 234 180 85 . . 446 300 Initial 202 | . . 98 70 . . . 202 Average 131 | . 92 142 70 . . 141 224 Maximum Alert Level 2 | . 1 . . . . 2 1 Low Security (%) 70 | 100 89 100 100 . 100 63 13 Level 1 25 | . 10 . . . . 17 86 Level 2 3 | . . . . . . 18 . Level 3 . | . . . . . . . . Level 4 . | . . . . . . . . Level 5 . | . . . . . . . . High Security . | . . . . . . . . Max Security . | . . . . . . . . Squads Dispatched 3 | . 2 . . . . 1 . Investigation . | . . . . . . . . Extermination . | . . . . . . . . Reinforcement 3 | . 2 . . . . 1 . Assault . | . . . . . . . . Garrison . | . . . . . . . . Intercept . | . . . . . . . . Construction Impeded 1 | . . . . . . 1 . Haulers Reinforced . | . . . . . . . . Stealth | -11 -10 -9 -9 -9 -8 -8 -7 --------- Run | Scr Mat Mat Min Exi Min Mat Fac Distress Signals 4 | . 2 . . . . 2 . Communications Jammed . | . . . . . . . . Distress Signals . | . . . . . . . . Times Spotted 42 | . 15 3 . . . 16 8 Peak Tracking Total 5 | . 5 2 . . . 5 5 Tactical Retreats 5 | . . . . . . 5 . Traps | -11 -10 -9 -9 -9 -8 -8 -7 ------- Run | Scr Mat Mat Min Exi Min Mat Fac Traps Triggered . | . . . . . . . . Indirectly . | . . . . . . . . Trap Hack Attempts . | . . . . . . . . Triggered . | . . . . . . . . Disarmed . | . . . . . . . . Reprogrammed . | . . . . . . . . Reused . | . . . . . . . . Traps Extracted . | . . . . . . . . Installed . | . . . . . . . . Triggered . | . . . . . . . . Machines | -11 -10 -9 -9 -9 -8 -8 -7 ---------- Run | Scr Mat Mat Min Exi Min Mat Fac Machines Disabled 7 | . . . 1 . . 3 3 Max in Single Turn 3 | . . . 1 . . 3 2 Machines Sabotaged . | . . . . . . . . Garrisons Compromised . | . . . . . . . . Overloaded Fab Kills . | . . . . . . . . Fab Network Shutdowns . | . . . . . . . . Hacking | -11 -10 -9 -9 -9 -8 -8 -7 --------- Run | Scr Mat Mat Min Exi Min Mat Fac Machines Accessed 8 | . 3 1 . 3 . 1 . Terminals 5 | . 3 1 . . . 1 . Fabricators . | . . . . . . . . Repair Stations . | . . . . . . . . Recycling Units . | . . . . . . . . Scanalyzers . | . . . . . . . . Garrison Access . | . . . . . . . . Total Hacks 42 | . 9 3 . 26 . 4 . Successful 36 | . 7 1 . 26 . 2 . Failed 6 | . 2 2 . . . 2 . Catastrophic 1 | . . 1 . . . . . Database Lockouts . | . . . . . . . . Manual 1 | . . . . 1 . . . Terminals 16 | . 9 3 . . . 4 . Fabricators . | . . . . . . . . Repair Stations . | . . . . . . . . Recycling Units . | . . . . . . . . Scanalyzers . | . . . . . . . . Garrison Access . | . . . . . . . . Terminal Hacks 36 | . 7 1 . 26 . 2 . Record 27 | . . . . 26 . 1 . Prototype ID Bank 1 | . 1 . . . . . . Emergency Access Points 1 | . 1 . . . . . . Terminal Index 1 | . . 1 . . . . . Scanalyzer Index 1 | . 1 . . . . . . Alert Level 2 | . 1 . . . . 1 . Reinforcement Status 1 | . 1 . . . . . . Registered Components 1 | . 1 . . . . . . Zone Layout 1 | . 1 . . . . . . Fabricator Hacks . | . . . . . . . . Repair Station Hacks . | . . . . . . . . Recycling Unit Hacks . | . . . . . . . . Scanalyzer . | . . . . . . . . Garrison Access Hacks . | . . . . . . . . Unauthorized Hacks . | . . . . . . . . Terminals . | . . . . . . . . Fabricators . | . . . . . . . . Repair Stations . | . . . . . . . . Recycling Units . | . . . . . . . . Scanalyzers . | . . . . . . . . Garrison Access . | . . . . . . . . Data Cores Recovered . | . . . . . . . . Used . | . . . . . . . . Hacking Detections 5 | . 3 1 . . . 1 . Full Trace Events 1 | . . . . . . 1 . Feedback Events . | . . . . . . . . Feedback Blocked . | . . . . . . . . Robot Schematics Acquired . | . . . . . . . . Robots Built . | . . . . . . . . Matter . | . . . . . . . . Time . | . . . . . . . . Total Robot Build Rating . | . . . . . . . . Part Schematics Acquired . | . . . . . . . . Parts Built . | . . . . . . . . Matter . | . . . . . . . . Time . | . . . . . . . . Total Part Build Rating . | . . . . . . . . Parts Repaired . | . . . . . . . . Time . | . . . . . . . . Parts Recycled . | . . . . . . . . Recycled Matter . | . . . . . . . . Retrieved Matter . | . . . . . . . . Retrieved Components . | . . . . . . . . Parts Scanalyzed . | . . . . . . . . Part Schematics Acquired . | . . . . . . . . Parts Damaged . | . . . . . . . . Bothacking | -11 -10 -9 -9 -9 -8 -8 -7 ------------ Run | Scr Mat Mat Min Exi Min Mat Fac Used RIF Installer . | . . . . . . . . Robots Hacked . | . . . . . . . . Non-combat . | . . . . . . . . Combat . | . . . . . . . . Robot Hacks Applied . | . . . . . . . . Relay Couplers Released . | . . . . . . . . Robots Rewired . | . . . . . . . . Allies Hacked . | . . . . . . . . Hacks Repelled . | . . . . . . . . Allies | -11 -10 -9 -9 -9 -8 -8 -7 -------- Run | Scr Mat Mat Min Exi Min Mat Fac Total Allies . | . . . . . . . . Largest Group . | . . . . . . . . Highest-Rated Group . | . . . . . . . . Highest-Rated Ally . | . . . . . . . . Total Orders . | . . . . . . . . Ally Attacks . | . . . . . . . . Total Damage . | . . . . . . . . Kills . | . . . . . . . . Allies Corrupted . | . . . . . . . . Allies Melted . | . . . . . . . . Intel | -11 -10 -9 -9 -9 -8 -8 -7 ------- Run | Scr Mat Mat Min Exi Min Mat Fac Robot Analysis Total . | . . . . . . . . Derelict Logs Recovered 2 | . . . 2 . . . . Drone Launches . | . . . . . . . . Drone Recoveries . | . . . . . . . . Exploration | -11 -10 -9 -9 -9 -8 -8 -7 ------------- Run | Scr Mat Mat Min Exi Min Mat Fac Turns Passed 2236 | 45 384 218 393 378 18 360 440 Spaces Moved 1342 | 38 216 118 256 248 13 236 217 Core 14 | 9 . . . . . . 5 Treads 31 | . . . . . . . 31 Legs 1131 | . 79 118 256 248 13 236 181 Wheels 166 | 29 137 . . . . . . Hover . | . . . . . . . . Flight . | . . . . . . . . Fastest Speed 50 | 50 90 120 150 150 150 123 120 Average Speed 136 | 77 100 142 150 150 150 127 155 Slowest Speed 210 | 90 120 150 150 150 150 153 210 Overloaded Moves . | . . . . . . . . Propulsion Burnouts . | . . . . . . . . Robots Hopped . | . . . . . . . . Cave-ins Triggered . | . . . . . . . . Exploration Rate (%) 27 | 3 50 16 66 44 8 28 7 Regions Visited 7 Branch Regions 3 Pre-discovered Areas 2 | . . . 2 . . . . Known Exits Taken . | . . . . . . . . Unknown Exits Taken 7 | 1 1 1 1 1 1 1 . Scrap Searched 1 | . . . 1 . . . . Spaces Dug 11 | . . . . . . 11 . Terrain Destroyed 159 | . . . 5 . . 116 38 Melee . | . . . . . . . . Projectile 2 | . . . . . . 1 1 AOE 157 | . . . 5 . . 115 37 Terrain Rammed . | . . . . . . . . Walls Destroyed . | . . . . . . . . Machines Disabled . | . . . . . . . . Actions | -11 -10 -9 -9 -9 -8 -8 -7 --------- Run | Scr Mat Mat Min Exi Min Mat Fac Total 1626 | 53 324 150 264 257 12 283 283 Wait 90 | 1 61 . 3 . . 7 18 Move 1335 | 37 215 117 255 247 12 235 217 Hop . | . . . . . . . . Pick Up 56 | 10 6 9 2 4 . 16 9 Fast Attach . | . . . . . . . . Attach 29 | 5 2 3 . 1 . 5 13 Detach . | . . . . . . . . Swap 10 | . 3 2 1 . . 3 1 Drop 29 | . 3 7 2 5 . 11 1 Fire 77 | . 34 12 1 . . 6 24 Melee . | . . . . . . . . Ram . | . . . . . . . . Kick . | . . . . . . . . Crush . | . . . . . . . . Escape Stasis . | . . . . . . . . Rewire . | . . . . . . . . Trap . | . . . . . . . . Miscellaneous . | . . . . . . . . Route ------- -11/Scrapyard -10/Materials -9/Materials -9/Mines -9/Exiles -8/Mines -8/Materials -7/Factory History --------- Turn | Location | Event 9 | -11/Scrapyard | Discovered new exit (range 15) 46 | -11/Scrapyard | Entered Materials 305 | -10/Materials | Build established: Mutant 410 | -10/Materials | Discovered new exit (range 13) 430 | -10/Materials | Entered another Materials area 430 | -9/Materials | Evolved 2 slots: Power x1, Utility x1 556 | -9/Materials | Discovered new exit (range 15) 648 | -9/Materials | Entered Mines 654 | -9/Mines | Learned location of Storage (-7) 673 | -9/Mines | Met a Derelict bent on vengeance 869 | -9/Mines | Learned Materials emergency access door positions 995 | -9/Mines | YI-UF0 nonchalantly dropped a Grenade Launcher on the ground 1026 | -9/Mines | Discovered new exit (range 10) 1041 | -9/Mines | Entered Exiles 1082 | -9/Exiles | Met 8R-AWN 1106 | -9/Exiles | Met EX-HEX 1154 | -9/Exiles | Met EX-BIN 1175 | -9/Exiles | Aligned with FarCom system 1176 | -9/Exiles | Given EX-Vault access code 1251 | -9/Exiles | Opened EX-Vault 1262 | -9/Exiles | Found Prototype Energy Cannon 1264 | -9/Exiles | Identified YOLO Cannon 1304 | -9/Exiles | Warned to stay clear of 0b10 Research branches 1400 | -9/Exiles | Discovered new exit (range 14) 1419 | -9/Exiles | Left Exiles lab with YOLO Cannon 1419 | -9/Exiles | Entered Mines 1419 | -8/Mines | Discovered new exit (range 13) 1437 | -8/Mines | Entered Materials 1437 | -8/Materials | Evolved 2 slots: Propulsion x1, Utility x1 1793 | -8/Materials | Discovered new exit (range 3) 1797 | -8/Materials | Entered Factory 1797 | -7/Factory | Evolved 2 slots: Utility x1, Weapon x1 1940 | -7/Factory | Core integrity fell below 50% 1964 | -7/Factory | Lost 5 parts (2n1u2w) 2216 | -7/Factory | Core integrity fell below 20% 2237 | -7/Factory | Destroyed by G-47 Trooper with Particle Gun Last Messages --------------- Slug penetrates Wall. Scythe destroyed. Slug penetrates Wall. Lyr. Light Armor Plating destroyed. P-60 Hacker suffers critical hit. Destroyed Shock Rifle. Lgt. Deuterium Engine destroyed. Slug penetrates Wall. Heat Sink destroyed. Slug penetrates Wall. Imp. Ion Engine destroyed. Plasma Cutter destroyed. Lyr. Light Armor Plating destroyed. Slug penetrates Wall. Aluminum Leg destroyed. Med. Treads destroyed. Slug penetrates Wall. G-47 Trooper destroyed. Penetrated by Slug. P-60 Hacker destroyed. Map ----- +----------------------------------------------------+ | ?????????????????????????????????????????????????? | | ?????????????????????????????????????????????????? | | ?????????????????????????????????????????????????? | | ?????????????????????????????????????????????????? | | ?????????????????????????????????????????????????? | | ????????????????????????????????????###??????????? | | ???????????????????????????????????? ??????????? | | ????????????????????????????????g?? ??????? ???? | | ??????????????????????????????????? ??????? ???? | | ?????????????????????????????????? ????? ?????? | | ?????????????????????????????????? ????? ??????? | | ??????????????????????????########+#####/####????? | | ??????????????????????????# #????? | | ??????????????????????????# #????? | | ??????????????????????????# #????? | | ??????????????????????????# % #????? | | ??????????????????????????# #? | | ??????????????????????????# # | | ??????????????????????????# # | | ??????????????????????????##/################ | | ???????????????????????????# #??????????????# | | ?????????????????###########h######?????????# | | ?????????????????# #?????????# | | ?????????????????# """" #?????????+ | | ?????????????????# """ #?????????# | | ?????????????????# @ "" #?????????# | | ?????????????????# """ # *????# | | ?????????????????# # ???# | | ?????????????????# [!%g ####??????# | | ?????????????????# |%g ##????????# | | ?????????????????# =!* ##????????# | | ?????????????????#########+#########????????# | | ??????????????######## # ######?????# | | ????????????# ############## | | ????????????# | | ????????????# | | ????????????+ | | ????????????# | | ????????????? | | ????????????? ##########+######## | | ????????????? ## ###### "### | | ?????????????? ?#####+#####????# " ## | | ?????????????? ?????????????????# " ## | | ??????????????? ??????????????????# "### | | ??????????????? ???????????????????#" "#?# | | ????????????????????????????????????#" "#?# | | ????????????????????????????????????#"" ##?# | | ????????????????????????????????????# #??# | | ????????????????????????????????????###########??# | | ?????????????????????????????????????????????????# | +----------------------------------------------------+ Best States ------------- Heat Dissipation 44 Energy Generation 23 Energy Capacity 430 Matter Stores 300 Matter Capacity 300 Sight Range 16 Terrain Scan Density 10 Armor Coverage 300 Resistance: TH 10 Propulsion Shielding 66 Evasion (%) 50 Recoil Reduction 3 Item Schematics ----------------- None Robot Schematics ------------------ None Fabricated ------------ Nothing Alien Tech Used ----------------- None Achievements -------------- None Challenges ------------ None Game ------ Seed BombXenonBox Manual? 0 Play Time 00:27:45 Cumulative 21.2 hours Start 2021.09.29 @ 23:50:27 End 2021.09.30 @ 00:19:17 Sessions 1 Manual Loads 0 Difficulty Rogue Special Mode None Game No. 46 Rogue 46 Adventurer 0 Explorer 0 Win Type - Total 0 Types 0/0/0/0/0/0/0/0/0 Lore% 25 Gallery% 28 Achievement% 19 Wizard Run 0 Options --------- ASCII 0 Keyboard 0 Movement Mouse Keybinds 0 Fullscreen 2 Font 20/Terminus Map View 66x50 Tactical HUD 0 Map Filters NONE Filters NONE Steam 1 RUN: 9ada1bd1-19a4-4303-b7dc-bd03998a5706